Cogmind - Beta 15 @@@ ROGUE MODE // 2025.08.23 @ 12:36:52 Player: skye Result: Destroyed by G-34 Mercenary with Small Laser Performance ------------- Evolutions (1) 500 Regions Visited (4) 800 Robots Destroyed (31) 155 Value Destroyed (750) 750 Prototype IDs (2) 40 Alien Tech Used (0) 0 Bonus (-5) -5 TOTAL SCORE: 2240 Bonus ------- Follower Combat Kills 33 Friendly Fire -38 Cogmind --------- Core Integrity 0/400 Matter 290/300 Energy 100/100 System Corruption 0% Temperature Cool (6) Movement Core (50) Location -9/Storage Parts ------- > --- POWER (2) -------- (None) > --- PROPULSION (2) --- (None) > --- UTILITY (3) ------ Advanced Visual Processing Unit > --- WEAPON (2) ------- Mining Claw > --- INVENTORY (5) ---- Improved Heat Sink Medium Storage Unit Drone Bay (2/2) Heavy Assault Rifle Mining Laser Peak State ------------ > --- POWER ------------ Heavy Ion Engine Heavy Ion Engine > --- PROPULSION ------- Carbon-fiber Leg Carbon-fiber Leg > --- UTILITY ---------- Medium Storage Unit Advanced Visual Processing Unit Trap Extractor > --- WEAPON ----------- Medium Laser Heavy Assault Rifle > --- INVENTORY -------- Light Treads Light Treads Improved Heat Sink Weight Redist. System Light Armor Plating Small Laser Light Assault Rifle Light Assault Rifle Mining Laser [Rating: 22] Favorites ----------- Power Improved Ion Engine Engine Improved Ion Engine Propulsion Light Treads Treads Light Treads Leg Carbon-fiber Leg Wheel Wheel Utility Advanced Visual Processing Unit Device Trap Extractor Storage Medium Storage Unit Processor Advanced Visual Processing Unit Protection Light Armor Plating Weapon Heavy Assault Rifle Energy Gun Medium Laser Ballistic Gun Heavy Assault Rifle Special Weapon Mining Laser Slashing Weapon Mining Claw Build | -11 -10 -10 -9 -9 ------- Run | Yrd Mat Min Mat Sto Slots Evolved 2 | . . . 2 . Power 1 | . . . 1 . Propulsion . | . . . . . Utility 1 | . . . 1 . Weapon . | . . . . . Parts Attached 33 | 6 . 6 12 9 Power 9 | 1 . 1 4 3 Engine 9 | 1 . 1 4 3 Core . | . . . . . Reactor . | . . . . . Propulsion 9 | 2 . 2 3 2 Treads 5 | 2 . . 1 2 Leg 2 | . . . 2 . Wheel 2 | . . 2 . . Hover . | . . . . . Flight . | . . . . . Utility 6 | 1 . 1 3 1 Device 2 | . . . 1 1 Storage 2 | 1 . . 1 . Processor 1 | . . . 1 . Hackware . | . . . . . Protection 1 | . . 1 . . Artifact . | . . . . . Weapon 9 | 2 . 2 2 3 Energy Gun 4 | 1 . . 2 1 Energy Cannon . | . . . . . Ballistic Gun 3 | 1 . 1 . 1 Ballistic Cannon . | . . . . . Launcher . | . . . . . Special Weapon 1 | . . 1 . . Impact Weapon . | . . . . . Slashing Weapon 1 | . . . . 1 Piercing Weapon . | . . . . . Special Melee Weapon . | . . . . . Unidentified Prototypes 2 | . . . 2 . Parts Lost 13 | . . . 2 11 Power 3 | . . . 1 2 Propulsion 5 | . . . 1 4 Utility 1 | . . . . 1 Weapon 4 | . . . . 4 Highest Loss Streak 5 | . . . 1 5 To Critical Strikes . | . . . . . Average Backups 7 | 1 2 5 9 9 Power . | . . . . 1 Propulsion 2 | . 1 2 3 . Utility 2 | . . . 2 3 Weapon 2 | . 1 2 3 3 Tool/Special . | . . . . . Unused Backups 6 | . . 2 . 4 Power . | . . . . . Propulsion 1 | . . 1 . . Utility 3 | . . 1 . 2 Weapon 1 | . . . . 1 Tool/Special 1 | . . . . 1 Average Slot Usage (%) 95 | . 95 100 97 87 Engine 17 | . 14 14 20 16 Treads 14 | . 28 13 19 4 Leg 4 | . . . . 15 Wheel 3 | . . 14 1 . Device 2 | . . . 3 4 Storage 11 | . 14 14 11 10 Processor 7 | . . . 11 11 Protection 8 | . 9 14 7 4 Energy Gun 12 | . 14 13 10 14 Ballistic Gun 10 | . 14 14 11 5 Peak Build Rating 22 | 6 7 10 22 21 Average Rating 14 | 4 6 8 17 17 On Entrance 8 | . 6 7 10 20 Naked Turns . | . . . . . Heaviest Build 33 | 10 11 19 33 32 Greatest Support 42 | 40 40 40 42 40 Greatest Overweight (x) 3 | . . . 1 3 Average Overweight (x) . | . . . . . Largest Inventory Capacity 10 | 8 8 8 10 10 Average Capacity 9 | 6 8 8 9 9 Most Carried 10 | 2 3 8 10 10 Average Carried 7 | 1 2 5 9 9 Final Capacity 10 | 8 8 8 10 5 Final Carried 10 | 2 3 8 10 5 Class Distribution -------------------- 57% | Scavenger-Mutant 42% | Mutant Dominant Class ---------------- Mutant | -10/Materials Mutant | -10/Mines Scavenger-Mutant | -9/Materials Scavenger-Mutant | -9/Storage Resources | -11 -10 -10 -9 -9 ----------- Run | Yrd Mat Min Mat Sto Matter Collected 749 | 165 15 151 251 167 Remotely . | . . . . . Salvage Created 1100 | . . 141 373 586 Parts 72 | . . 7 26 39 Haulers Intercepted 1 | . . . 1 . Recyclers Shooed 4 | . . . 1 3 Parts Field Recycled . | . . . . . Retrieved Matter . | . . . . . Parts Self-Destructed . | . . . . . Prevented . | . . . . . Kills | -11 -10 -10 -9 -9 ------- Run | Yrd Mat Min Mat Sto Combat Hostiles Destroyed 23 | . . 4 9 10 Guns 23 | . . 4 9 10 Classes Destroyed 9 | . . 2 6 1 Worker 3 | . . . 2 1 Builder 2 | . . . 2 . Hauler 1 | . . . 1 . Recycler 1 | . . . . 1 Watcher 3 | . . . 1 2 Swarmer 5 | . . . 5 . Grunt 9 | . . . 3 6 Sentry 7 | . . 2 1 4 Assembled 2 | . . 2 . . Best Kill Streak 5 | . . 2 5 4 Combat Bots Only 3 | . . 2 3 3 Max Kills in Single Turn 1 | . . 1 1 1 Gunslinging . | . . . . . Exploded . | . . . . . Melee . | . . . . . Uniques/NPCs Destroyed . | . . . . . Combat | -11 -10 -10 -9 -9 -------- Run | Yrd Mat Min Mat Sto Hostile Shots Fired 238 | . . 14 88 136 Missed 54 | . . 2 22 30 Hits 184 | . . 12 66 106 Melee 6 | . . . . 6 Projectile 178 | . . 12 66 100 Critical Strikes 6 | . . 1 1 4 Damage Taken 2296 | . . 173 715 1408 Core 437 | . . 28 85 324 Absorbed by Shields . | . . . . . Core Remaining (%) 94 | 100 . 88 . . Volleys Fired 149 | . . 16 58 75 Largest 2 | . . 2 2 2 Hottest 100 | . . 100 73 96 Shots Fired 226 | . . 25 100 101 Gun 221 | . . 20 100 101 Cannon . | . . . . . Launcher . | . . . . . Special 5 | . . 5 . . Kinetic 125 | . . 11 58 56 Thermal 101 | . . 14 42 45 Explosive . | . . . . . Electromagnetic . | . . . . . Robot Hit Streak 15 | . . 6 8 15 Robot Miss Streak 8 | . . 3 8 3 Penetration Max . | . . . . . Secondary Targets 2 | . . . 2 . Max Gunslinging Chain 1 | . . . 1 . Shots Hit Robots 142 | . . 13 56 73 Core Hits 54 | . . 8 21 25 Critical Kills . | . . . . . Critical Parts Destroyed . | . . . . . Critical Strikes 4 | . . . 3 1 Burn 4 | . . . 3 1 Melee Attacks . | . . . . . Impact . | . . . . . Slashing . | . . . . . Piercing . | . . . . . Sneak Attacks . | . . . . . Combat Hostiles . | . . . . . Follow-up Attacks . | . . . . . Damage Inflicted 1933 | . . 127 943 863 Guns 1921 | . . 127 938 856 Cannons . | . . . . . Explosions . | . . . . . Melee . | . . . . . Ramming 12 | . . . 5 7 Kinetic 1047 | . . 68 625 354 Thermal 874 | . . 59 313 502 Explosive . | . . . . . Electromagnetic . | . . . . . Impact . | . . . . . Slashing . | . . . . . Piercing . | . . . . . Highest Corruption . | . . . . . Average Corruption . | . . . . . Corruption Purged . | . . . . . Corruption Blocked . | . . . . . Overload Shots . | . . . . . Overflow Damage . | . . . . . Projectiles . | . . . . . Explosions . | . . . . . Melee . | . . . . . Knockbacks . | . . . . . Impact . | . . . . . Kinetic . | . . . . . Secondary . | . . . . . Self-Inflicted Damage . | . . . . . Shots . | . . . . . Rammed 4 | . . . 3 1 Targets Rammed 4 | . . . 3 1 Kicked . | . . . . . Crushed . | . . . . . Highest Temperature 495 | . . 132 307 495 Average Temperature 131 | . . 50 100 202 Received Heat Transfer 741 | . . 81 138 522 Effects 12 | . . . . 12 Shutdowns 4 | . . . . 4 Energy Bleed 5 | . . . . 5 Interference 2 | . . . . 2 Damage (minor) 1 | . . . . 1 Siege Activations . | . . . . . Martial Activations . | . . . . . Shielding Activations . | . . . . . Robots Disrupted . | . . . . . Combat Hostiles . | . . . . . Robots Corrupted . | . . . . . Combat Hostiles . | . . . . . Parts Fried . | . . . . . Impact Corruptions . | . . . . . Robots Melted . | . . . . . Combat Hostiles . | . . . . . Parts Melted 2 | . . . 1 1 Heat Transferred 2448 | . . 125 1147 1176 Parts Sabotaged . | . . . . . Parts Stolen . | . . . . . Parts Stripped . | . . . . . Power Chain Reactions . | . . . . . Alert | -11 -10 -10 -9 -9 ------- Run | Yrd Mat Min Mat Sto Maximum Alert Level . | . . . . . Low Security (%) 100 | 100 100 100 100 100 Level 1 . | . . . . . Level 2 . | . . . . . Level 3 . | . . . . . Level 4 . | . . . . . Level 5 . | . . . . . High Security . | . . . . . Max Security . | . . . . . Peak Influence 139 | . 12 32 139 85 Initial 55 | . . . . 55 Average 25 | . 1 3 24 50 Influence Increases 701 | . 12 46 344 299 Destroy 0b10 Robot/C 440 | . . 40 200 200 Destroy 0b10 Robot/NC 50 | . . . 30 20 Destroy Leader 128 | . . . 74 54 Allied During Kill 6 | . . 2 4 . Successful Hack 40 | . 12 . 19 9 Disable Machine 15 | . . . 15 . Destroy Structure 7 | . . 4 2 1 Lose Combat Pursuer 15 | . . . . 15 Influence Decreases 694 | . 12 45 214 423 Entered New Map 77 | . . . 1 76 Time Decay 496 | . 12 45 193 246 Lost Part 121 | . . . 20 101 Squads Dispatched 9 | . 1 1 2 5 Investigation 4 | . . 1 2 1 Extermination . | . . . . . Reinforcement 2 | . 1 . . 1 Assault . | . . . . . Garrison 3 | . . . . 3 Intercept . | . . . . . Searches Triggered . | . . . . . Construction Impeded . | . . . . . Haulers Reinforced . | . . . . . Active Scanning Responses . | . . . . . Cargo Convoy Interrupts . | . . . . . Stealth | -11 -10 -10 -9 -9 --------- Run | Yrd Mat Min Mat Sto Distress Signals 2 | . 1 . . 1 Communications Jammed . | . . . . . Distress Signals . | . . . . . Times Spotted 53 | . . 7 27 19 Peak Tracking Total 8 | . . 3 4 8 Tactical Retreats 2 | . . 1 . 1 Traps | -11 -10 -10 -9 -9 ------- Run | Yrd Mat Min Mat Sto Traps Triggered 1 | . . . 1 . Indirectly . | . . . . . Trap Hack Attempts . | . . . . . Triggered . | . . . . . Disarmed 2 | . . . 2 . Reprogrammed . | . . . . . Reused . | . . . . . Traps Extracted . | . . . . . Installed . | . . . . . Triggered . | . . . . . Machines | -11 -10 -10 -9 -9 ---------- Run | Yrd Mat Min Mat Sto Machines Disabled 1 | . . . 1 . Max in Single Turn 1 | . . . 1 . Machines Repaired . | . . . . . Machines Dismantled . | . . . . . Machines Sabotaged . | . . . . . Overloaded Fab Kills . | . . . . . Hacking | -11 -10 -10 -9 -9 --------- Run | Yrd Mat Min Mat Sto Machines Accessed 13 | . 4 1 3 5 Terminals 9 | . 3 . 2 4 Fabricators . | . . . . . Repair Stations 1 | . 1 . . . Recycling Units 1 | . . . . 1 Scanalyzers 1 | . . . 1 . Garrison Access . | . . . . . Total Hacks 37 | . 6 1 18 12 Successful 24 | . 4 1 12 7 Failed 13 | . 2 . 6 5 Catastrophic . | . . . . . Database Lockouts . | . . . . . Manual 19 | . 2 . 12 5 Terminals 28 | . 5 . 12 11 Fabricators . | . . . . . Repair Stations 1 | . 1 . . . Recycling Units 1 | . . . . 1 Scanalyzers 6 | . . . 6 . Garrison Access . | . . . . . Terminal Hacks 10 | . 1 1 4 4 Record 1 | . . . . 1 Robot Analysis 1 | . 1 . . . Open Door 3 | . . 1 . 2 Level Access Points 1 | . . . 1 . Alert Level 1 | . . . . 1 Locate Traps 1 | . . . 1 . Disarm Traps 1 | . . . 1 . Hauler Manifests 1 | . . . 1 . Fabricator Hacks . | . . . . . Repair Station Hacks 1 | . 1 . . . Refit 1 | . 1 . . . Recycling Unit Hacks 1 | . . . . 1 Report Inventory 1 | . . . . 1 Scanalyzer 6 | . . . 6 . Insert Component 3 | . . . 3 . Analyze 3 | . . . 3 . Garrison Access Hacks . | . . . . . Unauthorized Hacks 6 | . 2 . 2 2 Terminals 6 | . 2 . 2 2 Botnet 6 | . 2 . 2 2 Fabricators . | . . . . . Repair Stations . | . . . . . Recycling Units . | . . . . . Scanalyzers . | . . . . . Garrison Access . | . . . . . Data Cores Recovered . | . . . . . Used . | . . . . . Hacking Detections 8 | . 2 . 3 3 Full Trace Events 2 | . . . 1 1 Feedback Events . | . . . . . Feedback Blocked . | . . . . . Robot Schematics Acquired . | . . . . . Robots Built . | . . . . . Authchips . | . . . . . Time . | . . . . . Total Robot Build Rating . | . . . . . Part Schematics Acquired 3 | . . . 3 . Parts Built . | . . . . . Authchips . | . . . . . Time . | . . . . . Total Part Build Rating . | . . . . . Parts Repaired . | . . . . . Time . | . . . . . Parts Recycled . | . . . . . Recycled Matter . | . . . . . Retrieved Matter . | . . . . . Retrieved Components . | . . . . . Parts Scanalyzed 3 | . . . 3 . Part Schematics Acquired 3 | . . . 3 . Parts Damaged . | . . . . . Bothacking | -11 -10 -10 -9 -9 ------------ Run | Yrd Mat Min Mat Sto Used RIF Installer . | . . . . . Robots Hacked . | . . . . . Non-combat . | . . . . . Combat . | . . . . . Robot Hacks Applied . | . . . . . Relay Couplers Released . | . . . . . Fabnet Peak Effective % . | . . . . . Robots Rewired . | . . . . . Allies Hacked . | . . . . . Hacks Repelled . | . . . . . Allies | -11 -10 -10 -9 -9 -------- Run | Yrd Mat Min Mat Sto Total Allies 3 | . . 3 . . Largest Group 3 | . . 3 1 . Highest-Rated Group 40 | . . 40 16 . Highest-Rated Ally 16 | . . 16 16 . Total Orders . | . . . . . Ally Attacks 28 | . . 20 8 . Total Damage 247 | . . 161 86 . Kills 4 | . . 3 1 . Allies Corrupted . | . . . . . Allies Melted . | . . . . . Intel | -11 -10 -10 -9 -9 ------- Run | Yrd Mat Min Mat Sto Active Infowar (turns) 1298 | . . . 757 541 Optics 1298 | . . . 757 541 Robot Analysis Total 1 | . 1 . . . Derelict Logs Recovered . | . . . . . Drone Launches . | . . . . . Drone Recoveries . | . . . . . Exploration | -11 -10 -10 -9 -9 ------------- Run | Yrd Mat Min Mat Sto Turns Passed 1876 | 70 90 418 757 541 Spaces Moved 1058 | 43 54 314 385 262 Core 74 | 9 . . . 65 Treads 533 | 34 54 113 316 16 Legs 196 | . . . 15 181 Wheels 255 | . . 201 54 . Hover . | . . . . . Flight . | . . . . . Fastest Speed 50 | 50 160 80 80 50 Average Speed 126 | 136 160 108 140 116 Slowest Speed 240 | 160 160 160 190 240 Overloaded Moves . | . . . . . Propulsion Burnouts . | . . . . . Robots Hopped . | . . . . . Potential Cave-ins 2 | . . 2 . . Cave-ins Triggered . | . . . . . Exploration Rate (%) 31 | 4 15 62 31 46 Regions Visited 4 Branch Regions 2 Pre-discovered Areas . | . . . . . Known Exits Taken . | . . . . . Unknown Exits Taken 4 | 1 1 1 1 . Scrap Searched 1 | . . 1 . . Spaces Dug 5 | . . 5 . . Terrain Destroyed 5 | . . 5 . . Melee . | . . . . . Projectile 5 | . . 5 . . AOE . | . . . . . Terrain Rammed . | . . . . . Walls Destroyed . | . . . . . Machines Disabled . | . . . . . Actions | -11 -10 -10 -9 -9 --------- Run | Yrd Mat Min Mat Sto Total 1373 | 52 58 358 497 408 Wait 80 | . 4 11 24 41 Move 1054 | 42 53 313 384 262 Hop . | . . . . . Pick Up 24 | 4 1 7 6 6 Fast Attach 9 | 4 . . 3 2 Attach 12 | 2 . . 3 7 Detach 4 | . . . 2 2 Swap 17 | . . 6 8 3 Drop 20 | . . 5 6 9 Fire 149 | . . 16 58 75 Melee . | . . . . . Ram . | . . . . . Kick . | . . . . . Crush 4 | . . . 3 1 Escape Stasis . | . . . . . Rewire . | . . . . . Trap . | . . . . . Miscellaneous . | . . . . . Route ------- -11/Scrapyard -10/Materials -10/Mines -9/Materials (discovered 5 exits: Mat x3 / [*Min] / *Sto) -9/Storage History --------- Turn | Location | Event 38 | -11/Scrapyard | Discovered new exit (range 15) 71 | -11/Scrapyard | Entered Materials 72 | -10/Materials | Met a group of wandering Federalists 155 | -10/Materials | Discovered new exit (range 4) 161 | -10/Materials | Entered Mines 163 | -10/Mines | Assisted by bots powering up and referring to "LRC-V3" 250 | -10/Mines | Assembled infested the area 255 | -10/Mines | Assisted by a Guerilla fighting off Assembled 300 | -10/Mines | Build established: Mutant 340 | -10/Mines | Discovered new exit (range 10) 489 | -10/Mines | Met a Derelict shopkeep closing up shop 579 | -10/Mines | Entered Materials 579 | -9/Materials | Accompanied by 1 ally 579 | -9/Materials | Evolved 2 slots: Power x1, Utility x1 802 | -9/Materials | Identified exit to Materials 980 | -9/Materials | Build established: Scavenger-Mutant 1245 | -9/Materials | Discovered new exit (range 17) 1258 | -9/Materials | Discovered new exit (range 12) 1336 | -9/Materials | Entered Storage 1397 | -9/Storage | Build established: Mutant 1631 | -9/Storage | Garrison activated, responded to threat 1728 | -9/Storage | Build established: Scavenger-Mutant 1761 | -9/Storage | Core integrity fell below 50% 1859 | -9/Storage | Core integrity fell below 20% 1868 | -9/Storage | Lost 5 parts (2n3w) 1877 | -9/Storage | Destroyed by G-34 Mercenary with Small Laser Last Messages --------------- 01827_ Lgt. Assault Rifle destroyed. 01830_ Lgt. Treads destroyed. 01836_ Beam Rifle destroyed. 01837_ Lgt. Treads destroyed. 01838_ Dropped Sml. Laser. 01838_ Dropped Lgt. Assault Rifle. 01839_ Imp. Ion Engine severed. 01839_ Dropped Hvy. Ion Engine. 01841_ Dropped Trap Extractor. 01842_ Dropped Weight Redist. System. 01842_ Dropped Ion Engine. 01845_ Connecting with Terminal... >>Trojan(Botnet) Trojan loaded successfully. Testing... Terminal linked with 1 system. Awaiting botnet instructions. 01868_ ALERT: Suspicious activity at Terminal S004. Dispatching Investigation squad. 01871_ Acquired Mining Claw. Map ----- +----------------------------------------------------+ | ?????????????# ?????# #????????? | | ?????????????# ?????# #####????? | | ?????????????# ?????# ##==#????? | | ??????????#### ###### ##==#????? | | ??????????# ##==#????? | | ??????????# ## ##???? | | ??????????# # T#???? | | ??????????# + ##???? | | ??????????+ %#####????? | | ??????????# #????????? | | ??????????###+#+##### #????????? | | ??????????# # #????????? | | ??????????# # ###??????? | | ?????#+##+# """"" ! # #T######?? | | ?????# # """"" # # #! !!#?? | | ?????# # """"" # + #?? | | ?????# # # # #!!!!#?? | | ?????# # "T" # ########## | | ?????# # # #### | | ?????+ ##s######## + ! | | ?????# s ##?######+##### ] | | ?????# ssg"#?# ##% | | ?????# T#?# ## | | ?????# [ "#?# """ """ ## % | | ?????# ##?# """ """ ## ! | | ?????# @a #??# """ """ ##% | | ?????# " "a #??# """ ##+##### | | ?????+ "G" #??# """ ## ##### | | ?????# " #?? # | | ?????# #?##?######### | | ?????+ / % % | | ?????##########?############+##### | | ?????????????????????????? ???# | | ???????????????????????? ??# | | ???????????????????????# ?# | | ???????????????????????# ?# | | ???????????????????????# # | | ???????????????????????# |! # | | ???????????????????????# |! # | | ???????????????????????? | # | | ???????????????????????###" "##### | | ?????????????????????????#"R"????# | | ?????????????????????????#"""????? | | ??????????????????????????###????? | | ?????????????????????????????????? | | | | | | | | | | | +----------------------------------------------------+ Best States ------------- Heat Dissipation 42 Energy Generation 23 Energy Capacity 460 Matter Stores 300 Matter Capacity 300 Sight Range 20 Terrain Scan Density 10 Armor Coverage 150 Evasion (%) 55 Recoil Reduction 2 Trap Extractor Capacity 4 Item Schematics ----------------- Wheel | -9/Materials | Scanalyzed Carbon-fiber Leg | -9/Materials | Scanalyzed Sml. Storage Unit | -9/Materials | Scanalyzed Robot Schematics ------------------ None Fabricated ------------ Nothing Repaired ---------- Nothing Alien Tech Used ----------------- None Achievements -------------- None Challenges ------------ None Game ------ Seed FusionAlertParser Manual? 0 Play Time 00:28:32 Cumulative 85.4 hours Start 2025.08.13 @ 15:25:30 End 2025.08.23 @ 12:36:52 Sessions 3 Manual Loads 0 Difficulty Rogue Special Mode None Game No. 106 Rogue 62 Adventurer 44 Explorer 0 Win Type - Total 0 Types 0/0/0/0/0/0/0/0/0/0 Lore% 22 Gallery% 45 Achievement% 39 Wizard Run 0 Options --------- Layout 1 ASCII 0 Keyboard 1 Movement Vi Keybinds 0 Fullscreen 1 Font 24/Terminus Map View 50x35 Zoom Use 0% Tactical HUD 1 Map Filters NONE Filters NONE Steam 1 RUN: ae6649f4-0001-4223-8789-7c3db05d4d50